fUSD/lending_fUSD_20250525
["ID","MTS","AMOUNT","RATE_DAILY","PERIOD"]
[362343434,1748207457179,-400.0,0.00019998,2]
[362343435,1748207457189,-383.16,0.00019998,2]
[362343436,1748207457198,-284.76,0.00019998,2]
[362343437,1748207457209,-194.36,0.00019998,2]
[362343438,1748207457218,-420.0,0.00019998,2]
[362343439,1748207457228,-420.0,0.00019998,2]
[362343440,1748207457238,-420.0,0.00019998,2]
[362343441,1748207457248,-420.0,0.00019998,2]
[362343442,1748207457257,-454.72,0.00019998,2]
[362343443,1748207457267,-420.0,0.00019998,2]
[362343444,1748207457276,-454.72,0.00019998,2]
[362343445,1748207457286,-420.0,0.00019998,2]
[362343446,1748207457297,-420.0,0.00019998,2]
[362343447,1748207457306,-420.0,0.00019998,2]
[362343448,1748207457315,-406.22,0.00019998,2]
[362343449,1748207457324,-420.0,0.00019998,2]
[362343450,1748207457333,-420.0,0.00019998,2]
[362343451,1748207457343,-420.0,0.00019998,2]
[362343452,1748207457352,-420.0,0.00019998,2]
[362343453,1748207457363,-480.17,0.00019998,2]
[362343454,1748207457373,-420.0,0.00019998,2]
[362343455,1748207457383,-531.84,0.00019998,2]
[362343456,1748207457401,-423.7596428,0.00019998,2]
[362343457,1748207457411,-420.0,0.00019998,2]
[362343458,1748207457421,-420.0,0.00019998,2]
[362343459,1748207457430,-345.14,0.00019998,2]
[362343460,1748207457440,-424.20222996,0.00019998,2]
[362343461,1748207457449,-420.0,0.00019998,2]
[362343462,1748207457459,-420.0,0.00019998,2]
[362343463,1748207457469,-420.0,0.00019998,2]
[362343464,1748207457479,-471.75,0.00019998,2]
[362343465,1748207457489,-420.0,0.00019998,2]
[362343466,1748207457500,-420.0,0.00019998,2]
[362343467,1748207457510,-337.79,0.00019998,2]
[362343468,1748207457519,-420.0,0.00019998,2]
[362343469,1748207457529,-421.45455731,0.00019998,2]
[362343470,1748207457538,-420.0,0.00019998,2]
[362343471,1748207457547,-420.0,0.00019998,2]
[362343472,1748207457557,-420.0,0.00019998,2]
[362343473,1748207457566,-420.0,0.00019998,2]
[362343474,1748207457578,-420.0,0.00019998,2]
[362343475,1748207457587,-420.0,0.00019998,2]
[362343476,1748207457597,-424.192007,0.00019998,2]
[362343477,1748207457606,-420.0,0.00019998,2]
[362343478,1748207457615,-420.0,0.00019998,2]
[362343479,1748207457624,-186.954396,0.00019998,3]
[362343480,1748207457635,-420.0,0.00019998,2]
[362343481,1748207457852,-421.00694894,0.00019998,2]
[362343482,1748207457861,-186.954396,0.00019998,3]
[362343483,1748207457871,-400.0,0.00019998,2]
[362343484,1748207457881,-560.66,0.00019998,2]
[362343485,1748207457890,-420.0,0.00019998,2]
[362343486,1748207457900,-420.0,0.00019998,2]
[362343487,1748207457909,-420.0,0.00019998,2]
[362343488,1748207457918,-466.47,0.00019998,2]
[362343489,1748207457927,-420.0,0.00019998,2]
[362343490,1748207457936,-420.0,0.00019998,2]
[362343491,1748207457945,-420.0,0.00019998,2]
[362343492,1748207457954,-186.43,0.00019998,2]
[362343493,1748207457963,-420.0,0.00019998,2]
[362343494,1748207457972,-420.0,0.00019998,2]
[362343495,1748207457982,-422.99761237,0.00019998,2]
[362343496,1748207457991,-385.64318622,0.00019998,2]
[362343497,1748207458001,-420.0,0.00019998,2]
[362343498,1748207458010,-420.0,0.00019998,2]
[362343499,1748207458020,-420.0,0.00019998,2]
[362343500,1748207458029,-420.0,0.00019998,2]
[362343501,1748207458039,-420.0,0.00019998,2]
[362343502,1748207458048,-420.0,0.00019998,2]
[362343503,1748207458058,-359.13,0.00019998,2]
[362343504,1748207458067,-420.0,0.00019998,2]
[362343505,1748207458077,-420.0,0.00019998,2]
[362343506,1748207458086,-500.0,0.00019998,2]
[362343507,1748207458096,-420.0,0.00019998,2]
[362343508,1748207458105,-420.0,0.00019998,2]
[362343509,1748207458114,-420.0,0.00019998,2]
[362343510,1748207458124,-500.0,0.00019998,2]
[362343511,1748207458134,-420.0,0.00019998,2]
[362343512,1748207458143,-303.36,0.00019998,2]
[362343513,1748207458152,-400.0,0.00019998,2]
[362343514,1748207458162,-420.0,0.00019998,2]
[362343515,1748207458171,-420.0,0.00019998,2]
[362343516,1748207458180,-420.0,0.00019998,2]
[362343517,1748207458189,-420.0,0.00019998,2]
[362343518,1748207458200,-420.0,0.00019998,2]
[362343519,1748207458211,-420.0,0.00019998,2]
[362343520,1748207458220,-447.6,0.00019998,2]
[362343521,1748207458230,-426.05642567,0.00019998,2]
[362343522,1748207458239,-424.37295278,0.00019998,2]
[362343523,1748207458249,-420.0,0.00019998,2]
[362343524,1748207458258,-420.0,0.00019998,2]
[362343525,1748207458268,-245.58,0.00019998,2]
[362343526,1748207458278,-420.0,0.00019998,2]
[362343527,1748207458287,-420.0,0.00019998,2]
[362343528,1748207458297,-420.0,0.00019998,2]
[362343529,1748207458306,-420.0,0.00019998,2]
[362343530,1748207458315,-420.0,0.00019998,2]
[362343531,1748207458324,-420.0,0.00019998,2]
[362343532,1748207458334,-420.0,0.00019998,2]
[362343533,1748207458343,-426.13,0.00019998,2]
[362343534,1748207458352,-476.4,0.00019998,2]
[362343535,1748207458362,-420.0,0.00019998,2]
[362343536,1748207458371,-420.0,0.00019998,2]
[362343537,1748207458546,-420.0,0.00019998,2]
[362343538,1748207458556,-420.0,0.00019998,2]
[362343539,1748207458566,-369.95,0.00019998,2]
[362343540,1748207458576,-420.0,0.00019998,2]
[362343541,1748207458585,-420.0,0.00019998,2]
[362343542,1748207458594,-420.0,0.00019998,2]
[362343543,1748207458604,-420.0,0.00019998,2]
[362343544,1748207458614,-420.0,0.00019998,2]
[362343545,1748207458624,-420.0,0.00019998,2]
[362343546,1748207458633,-420.0,0.00019998,2]
[362343547,1748207458642,-422.90854656,0.00019998,2]
[362343548,1748207458651,-420.0,0.00019998,2]
[362343549,1748207458661,-420.0,0.00019998,2]
[362343550,1748207458672,-421.07,0.00019998,2]
[362343551,1748207458682,-420.0,0.00019998,2]
[362343552,1748207458691,-420.0,0.00019998,2]
[362343553,1748207458700,-515.47,0.00019998,2]
[362343554,1748207458709,-420.0,0.00019998,2]
[362343555,1748207458719,-424.26051374,0.00019998,2]
[362343556,1748207458728,-420.0,0.00019998,2]
[362343557,1748207458737,-420.0,0.00019998,2]
[362343558,1748207458746,-420.0,0.00019998,2]
[362343559,1748207458756,-420.0,0.00019998,2]
[362343560,1748207458766,-420.0,0.00019998,2]
[362343561,1748207458775,-420.0,0.00019998,2]
[362343562,1748207458784,-527.52,0.00019998,2]
[362343563,1748207458793,-420.0,0.00019998,2]
[362343564,1748207458803,-420.0,0.00019998,2]
[362343565,1748207458812,-420.0,0.00019998,2]
[362343566,1748207458821,-420.0,0.00019998,2]
[362343567,1748207458831,-420.0,0.00019998,2]
[362343568,1748207458840,-420.0,0.00019998,2]
[362343569,1748207458849,-171.38,0.00019998,2]
[362343570,1748207458859,-420.0,0.00019998,2]
[362343571,1748207458868,-473.58584994,0.00019998,2]
[362343572,1748207458878,-420.0,0.00019998,2]
[362343573,1748207458888,-420.0,0.00019998,2]
[362343574,1748207458898,-311.11,0.00019998,2]
[362343575,1748207458907,-420.0,0.00019998,2]
[362343576,1748207458917,-452.88,0.00019998,2]
[362343577,1748207458927,-420.0,0.00019998,2]
[362343578,1748207458937,-422.89240983,0.00019998,2]
[362343579,1748207458947,-491.26,0.00019998,2]
[362343580,1748207458956,-420.0,0.00019998,2]
[362343581,1748207458966,-420.0,0.00019998,2]
[362343582,1748207458975,-420.0,0.00019998,2]
[362343583,1748207458984,-420.0,0.00019998,2]
[362343584,1748207458993,-420.0,0.00019998,2]
[362343585,1748207459002,-420.0,0.00019998,2]
[362343586,1748207459011,-420.0,0.00019998,2]
[362343587,1748207459021,-420.0,0.00019998,2]
[362343588,1748207459030,-218.5,0.00019998,2]
[362343589,1748207459039,-343.01,0.00019998,2]
[362343590,1748207459048,-420.0,0.00019998,2]
[362343591,1748207459057,-420.0,0.00019998,2]
[362343592,1748207459066,-420.0,0.00019998,2]
[362343593,1748207459076,-420.0,0.00019998,2]
[362343594,1748207459085,-420.0,0.00019998,2]
[362343595,1748207459095,-167.14907563,0.00019998,2]
[362343596,1748207459104,-420.0,0.00019998,2]
[362343597,1748207459113,-422.49229986,0.00019998,2]
[362343598,1748207459122,-425.47515911,0.00019998,2]
[362343599,1748207459131,-420.0,0.00019998,2]
[362343600,1748207459140,-420.0,0.00019998,2]
[362343601,1748207459149,-429.57471706,0.00019998,2]
[362343602,1748207459158,-420.0,0.00019998,2]
[362343603,1748207459168,-420.0,0.00019998,2]
[362343604,1748207459176,-420.0,0.00019998,2]
[362343605,1748207459186,-420.0,0.00019998,2]
[362343606,1748207459195,-532.51,0.00019998,2]
[362343607,1748207459205,-420.0,0.00019998,2]
[362343608,1748207459214,-420.0,0.00019998,2]
[362343609,1748207459223,-310.39,0.00019998,2]
[362343610,1748207459233,-465.48343312,0.00019998,2]
[362343611,1748207459242,-420.0,0.00019998,2]
[362343612,1748207459251,-420.0,0.00019998,2]
[362343613,1748207459260,-327.26,0.00019998,2]
[362343614,1748207459269,-557.19,0.00019998,2]
[362343615,1748207459279,-423.14175117,0.00019998,2]
[362343616,1748207459288,-420.0,0.00019998,2]
[362343617,1748207459297,-436.81897346,0.00019998,2]
[362343618,1748207459307,-420.0,0.00019998,2]
[362343619,1748207459316,-225.16,0.00019998,2]
[362343620,1748207459326,-420.0,0.00019998,2]
[362343621,1748207459335,-420.0,0.00019998,2]
[362343622,1748207459344,-333.48,0.00019998,2]
[362343623,1748207459354,-462.7,0.00019998,2]
[362343624,1748207459363,-192.12708989,0.00019998,2]
[362343625,1748207459373,-420.0,0.00019998,2]
[362343626,1748207459383,-430.48535095,0.00019998,2]
[362343627,1748207459392,-420.0,0.00019998,2]
[362343628,1748207459401,-420.0,0.00019998,2]
[362343629,1748207459410,-420.0,0.00019998,2]
[362343630,1748207459419,-420.0,0.00019998,2]
[362343631,1748207459428,-420.0,0.00019998,2]
[362343632,1748207459438,-157.6,0.00019998,2]
[362343633,1748207459447,-420.0,0.00019998,2]
[362343634,1748207459456,-420.0,0.00019998,2]
[362343635,1748207459466,-420.0,0.00019998,2]
[362343636,1748207459476,-424.15153708,0.00019998,2]
[362343637,1748207459485,-420.0,0.00019998,2]
[362343638,1748207459494,-420.0,0.00019998,2]
[362343639,1748207459504,-420.0,0.00019998,2]
[362343640,1748207459513,-420.0,0.00019998,2]
[362343641,1748207459523,-523.84,0.00019998,2]
[362343642,1748207459532,-420.0,0.00019998,2]
[362343643,1748207459541,-420.0,0.00019998,2]
[362343644,1748207459550,-281.83,0.00019998,2]
[362343645,1748207459560,-420.0,0.00019998,2]
[362343646,1748207459569,-420.0,0.00019998,2]
[362343647,1748207459579,-427.19471945,0.00019998,2]
[362343648,1748207459589,-420.0,0.00019998,2]
[362343649,1748207459598,-425.95963904,0.00019998,2]
[362343650,1748207459607,-420.0,0.00019998,2]
[362343651,1748207459617,-420.0,0.00019998,2]
[362343652,1748207459626,-420.0,0.00019998,2]
[362343653,1748207459635,-420.0,0.00019998,2]
[362343654,1748207459644,-420.0,0.00019998,2]
[362343655,1748207459654,-420.0,0.00019998,2]
[362343656,1748207459665,-421.81981772,0.00019998,2]
[362343657,1748207459675,-425.97680273,0.00019998,2]
[362343658,1748207459685,-420.0,0.00019998,2]
[362343659,1748207459694,-420.0,0.00019998,2]
[362343660,1748207459703,-420.0,0.00019998,2]
[362343661,1748207459714,-421.40957339,0.00019998,2]
[362343662,1748207459723,-420.0,0.00019998,2]
[362343663,1748207459733,-420.0,0.00019998,2]
[362343664,1748207459743,-420.0,0.00019998,2]
[362343665,1748207459752,-420.0,0.00019998,2]
[362343666,1748207459761,-420.0,0.00019998,2]
[362343667,1748207459770,-420.0,0.00019998,2]
[362343668,1748207459779,-401.35331539,0.00019998,2]
[362343669,1748207459789,-420.0,0.00019998,2]
[362343670,1748207459798,-420.0,0.00019998,2]
[362343671,1748207459807,-178.12,0.00019998,2]
[362343672,1748207459816,-420.0,0.00019998,2]
[362343673,1748207459825,-479.34,0.00019998,2]
[362343674,1748207459835,-420.0,0.00019998,2]
[362343675,1748207459844,-420.0,0.00019998,2]
[362343676,1748207459853,-456.82007023,0.00019998,2]
[362343677,1748207459863,-420.0,0.00019998,2]
[362343678,1748207459872,-429.61654635,0.00019998,2]
[362343679,1748207459881,-420.0,0.00019998,2]
[362343680,1748207459891,-420.0,0.00019998,2]
[362343681,1748207459900,-420.0,0.00019998,2]
[362343682,1748207459910,-420.0,0.00019998,2]
[362343683,1748207459919,-420.0,0.00019998,2]
[362343684,1748207459928,-420.0,0.00019998,2]
[362343685,1748207459938,-420.0,0.00019998,2]
[362343686,1748207459948,-420.0,0.00019998,2]
[362343687,1748207459957,-406.75,0.00019998,2]
[362343688,1748207459966,-543.19,0.00019998,2]
[362343689,1748207459976,-420.0,0.00019998,2]
[362343690,1748207459985,-420.0,0.00019998,2]
[362343691,1748207459994,-420.0,0.00019998,2]
[362343692,1748207460003,-420.0,0.00019998,2]
[362343693,1748207460013,-420.0,0.00019998,2]
[362343694,1748207460023,-311.37,0.00019998,2]
[362343695,1748207460034,-420.0,0.00019998,2]
[362343696,1748207460044,-420.0,0.00019998,2]
[362343697,1748207460053,-420.0,0.00019998,2]
[362343698,1748207460064,-420.0,0.00019998,2]
[362343699,1748207460074,-423.0539799,0.00019998,2]
[362343700,1748207460083,-420.0,0.00019998,2]
[362343701,1748207460092,-425.27603919,0.00019998,2]
[362343702,1748207460102,-420.0,0.00019998,2]
[362343703,1748207460111,-431.91670803,0.00019998,2]
[362343704,1748207460121,-420.0,0.00019998,2]
[362343705,1748207460130,-420.0,0.00019998,2]
[362343706,1748207460139,-420.0,0.00019998,2]
[362343707,1748207460148,-168.71293752,0.00019998,2]
[362343708,1748207460158,-420.0,0.00019998,2]
[362343709,1748207460167,-420.0,0.00019998,2]
[362343710,1748207460176,-420.0,0.00019998,2]
[362343711,1748207460186,-420.0,0.00019998,2]
[362343712,1748207460196,-420.0,0.00019998,2]
[362343713,1748207460205,-424.80088744,0.00019998,2]
[362343714,1748207460215,-420.0,0.00019998,2]
[362343715,1748207460224,-515.73753897,0.00019998,2]
[362343716,1748207460233,-420.0,0.00019998,2]
[362343717,1748207460244,-423.86773472,0.00019998,2]
[362343718,1748207460253,-420.0,0.00019998,2]
[362343719,1748207460263,-423.46826511,0.00019998,2]
[362343720,1748207460273,-420.0,0.00019998,2]
[362343721,1748207460282,-420.0,0.00019998,2]
[362343722,1748207460292,-420.0,0.00019998,2]
[362343723,1748207460301,-420.0,0.00019998,2]
[362343724,1748207460311,-420.0,0.00019998,2]
[362343725,1748207460320,-420.0,0.00019998,2]
[362343726,1748207460330,-383.54860391,0.00019998,2]
[362343727,1748207460340,-420.0,0.00019998,2]
[362343728,1748207460349,-420.0,0.00019998,2]
[362343729,1748207460358,-500.0,0.00019998,2]
[362343730,1748207460372,-500.0,0.00019998,2]
[362343731,1748207460382,-500.0,0.00019998,2]
[362343732,1748207460391,-500.0,0.00019998,2]
[362343733,1748207460401,-420.0,0.00019998,2]
[362343734,1748207460410,-500.0,0.00019998,2]
[362343735,1748207460420,-420.0,0.00019998,2]
[362343736,1748207460429,-420.0,0.00019998,2]
[362343737,1748207460439,-426.88086161,0.00019998,2]
[362343738,1748207460448,-420.0,0.00019998,2]
[362343739,1748207460457,-420.0,0.00019998,2]
[362343740,1748207460467,-481.58,0.00019998,2]
[362343741,1748207460476,-420.0,0.00019998,2]
[362343742,1748207460486,-426.07047452,0.00019998,2]
[362343743,1748207460496,-420.0,0.00019998,2]
[362343744,1748207460505,-431.00670367,0.00019998,2]
[362343745,1748207460514,-420.0,0.00019998,2]
[362343746,1748207460523,-480.92,0.00019998,2]
[362343747,1748207460532,-424.65835284,0.00019998,2]
[362343748,1748207460541,-420.0,0.00019998,2]
[362343749,1748207460551,-457.70667437,0.00019998,2]
[362343750,1748207460560,-426.17275191,0.00019998,2]
[362343751,1748207460569,-420.0,0.00019998,2]
[362343752,1748207460579,-431.81568721,0.00019998,2]
[362343753,1748207460588,-420.0,0.00019998,2]
[362343754,1748207460597,-424.24025999,0.00019998,2]
[362343755,1748207460606,-420.0,0.00019998,2]
[362343756,1748207460615,-420.0,0.00019998,2]
[362343757,1748207460624,-540.34,0.00019998,2]
[362343758,1748207460634,-425.13088791,0.00019998,2]
[362343759,1748207460643,-420.0,0.00019998,2]
[362343760,1748207460652,-420.0,0.00019998,2]
[362343761,1748207460662,-400.24832971,0.00019998,2]
[362343762,1748207460673,-420.0,0.00019998,2]
[362343763,1748207460682,-420.0,0.00019998,2]
[362343764,1748207460691,-420.0,0.00019998,2]
[362343765,1748207460699,-447.4,0.00019998,2]
[362343766,1748207460709,-420.0,0.00019998,2]
[362343767,1748207460718,-243.2,0.00019998,2]
[362343768,1748207460727,-420.0,0.00019998,2]
[362343769,1748207460736,-423.31679703,0.00019998,2]
[362343770,1748207460745,-420.0,0.00019998,2]
[362343771,1748207460754,-420.0,0.00019998,2]
[362343772,1748207460763,-420.0,0.00019998,2]
[362343773,1748207460772,-420.0,0.00019998,2]
[362343774,1748207460781,-420.0,0.00019998,2]
[362343775,1748207460790,-420.0,0.00019998,2]
[362343776,1748207460799,-460.86942413,0.00019998,2]
[362343777,1748207460809,-420.0,0.00019998,2]
[362343778,1748207460818,-423.49462161,0.00019998,2]
[362343779,1748207460828,-420.0,0.00019998,2]
[362343780,1748207460970,-420.0,0.00019998,2]
[362343781,1748207460979,-420.0,0.00019998,2]
[362343782,1748207460989,-420.0,0.00019998,2]
[362343783,1748207460998,-420.0,0.00019998,2]
[362343784,1748207461007,-420.0,0.00019998,2]
[362343785,1748207461016,-553.38,0.00019998,2]
[362343786,1748207461025,-420.0,0.00019998,2]
[362343787,1748207461035,-420.0,0.00019998,2]
[362343788,1748207461043,-420.0,0.00019998,2]
[362343789,1748207461052,-420.0,0.00019998,2]
[362343790,1748207461062,-420.0,0.00019998,2]
[362343791,1748207461071,-420.0,0.00019998,2]
[362343792,1748207461080,-423.19111175,0.00019998,2]
[362343793,1748207461089,-420.0,0.00019998,2]
[362343794,1748207461098,-420.0,0.00019998,2]
[362343795,1748207461107,-420.0,0.00019998,2]
[362343796,1748207461117,-420.0,0.00019998,2]
[362343797,1748207461126,-420.0,0.00019998,2]
[362343798,1748207461135,-420.0,0.00019998,2]
[362343799,1748207461143,-420.0,0.00019998,2]
[362343800,1748207461153,-420.0,0.00019998,2]
[362343801,1748207461162,-428.95040171,0.00019998,2]
[362343802,1748207461171,-420.17622672,0.00019998,2]
[362343803,1748207461180,-420.0,0.00019998,2]
[362343804,1748207461190,-420.0,0.00019998,2]
[362343805,1748207461199,-420.0,0.00019998,2]
[362343806,1748207461208,-297.8,0.00019998,2]
[362343807,1748207461217,-435.52166748,0.00019998,2]
[362343808,1748207461227,-425.38313114,0.00019998,2]
[362343809,1748207461236,-420.0,0.00019998,2]
[362343810,1748207461246,-420.0,0.00019998,2]
[362343811,1748207461255,-423.79216115,0.00019998,2]
[362343812,1748207461264,-434.93858329,0.00019998,2]
[362343813,1748207461273,-420.0,0.00019998,2]
[362343814,1748207461282,-417.85575215,0.00019998,2]
[362343815,1748207461291,-429.09221433,0.00019998,2]
[362343816,1748207461301,-420.0,0.00019998,2]
[362343817,1748207461310,-439.21509418,0.00019998,2]
[362343818,1748207461319,-420.0,0.00019998,2]
[362343819,1748207461329,-426.44430377,0.00019998,2]
[362343820,1748207461338,-420.0,0.00019998,2]
[362343821,1748207461347,-424.06143775,0.00019998,2]
[362343822,1748207461356,-420.0,0.00019998,2]
[362343823,1748207461365,-441.89007446,0.00019998,2]
[362343824,1748207461374,-420.0,0.00019998,2]
[362343825,1748207461383,-420.0,0.00019998,2]
[362343826,1748207461392,-420.0,0.00019998,2]
[362343827,1748207461402,-420.0,0.00019998,2]
[362343828,1748207461411,-420.0,0.00019998,2]
[362343829,1748207461420,-377.9,0.00019998,2]
[362343830,1748207461430,-420.0,0.00019998,2]
[362343831,1748207461439,-420.0,0.00019998,2]
[362343832,1748207461448,-425.99527263,0.00019998,2]
[362343833,1748207461457,-427.5672242,0.00019998,2]
[362343834,1748207461466,-429.61796836,0.00019998,2]
[362343835,1748207461476,-420.0,0.00019998,2]
[362343836,1748207461485,-420.0,0.00019998,2]
[362343837,1748207461494,-420.0,0.00019998,2]
[362343838,1748207461503,-420.0,0.00019998,2]
[362343839,1748207461512,-420.0,0.00019998,2]
[362343840,1748207461521,-420.0,0.00019998,2]
[362343841,1748207461530,-423.60259209,0.00019998,2]
[362343842,1748207461539,-431.51317162,0.00019998,2]
[362343843,1748207461548,-420.0,0.00019998,2]
[362343844,1748207461558,-160.88770352,0.00019998,2]
[362343845,1748207461567,-420.0,0.00019998,2]
[362343846,1748207461576,-424.28229659,0.00019998,2]
[362343847,1748207461585,-420.0,0.00019998,2]
[362343848,1748207461594,-429.90559517,0.00019998,2]
[362343849,1748207461604,-423.49540969,0.00019998,2]
[362343850,1748207461613,-420.0,0.00019998,2]
[362343851,1748207461622,-420.0,0.00019998,2]
[362343852,1748207461631,-423.54055432,0.00019998,2]
[362343853,1748207461641,-420.0,0.00019998,2]
[362343854,1748207461650,-420.0,0.00019998,2]
[362343855,1748207461660,-434.40962108,0.00019998,2]
[362343856,1748207461673,-420.0,0.00019998,2]
[362343857,1748207461682,-420.0,0.00019998,2]
[362343858,1748207461691,-420.0,0.00019998,2]
[362343859,1748207461701,-420.0,0.00019998,2]
[362343860,1748207461711,-422.94735423,0.00019998,2]
[362343861,1748207461720,-420.0,0.00019998,2]
[362343862,1748207461729,-420.0,0.00019998,2]
[362343863,1748207461738,-420.0,0.00019998,2]
[362343864,1748207461747,-420.0,0.00019998,2]
[362343865,1748207461758,-420.0,0.00019998,2]
[362343866,1748207461767,-420.0,0.00019998,2]
[362343867,1748207461777,-420.0,0.00019998,2]
[362343868,1748207461787,-591.41,0.00019998,2]
[362343869,1748207461796,-591.41,0.00019998,2]
[362343870,1748207461805,-473.7899379,0.00019998,2]
[362343871,1748207461814,-151.815191,0.00019998,2]
[362343872,1748207461823,-420.0,0.00019998,2]
[362343873,1748207461832,-437.40700609,0.00019998,2]
[362343874,1748207461842,-420.0,0.00019998,2]
[362343875,1748207461851,-420.0,0.00019998,2]
[362343876,1748207461860,-420.0,0.00019998,2]
[362343877,1748207461870,-420.0,0.00019998,2]
[362343878,1748207461879,-407.26217258,0.00019998,2]
[362343879,1748207461888,-420.0,0.00019998,2]
[362343880,1748207461897,-420.0,0.00019998,2]
[362343881,1748207461906,-203.36,0.00019998,2]
[362343882,1748207461915,-151.0,0.00019998,2]
[362343883,1748207461925,-420.0,0.00019998,2]
[362343884,1748207461934,-420.0,0.00019998,2]
[362343885,1748207461944,-429.48035189,0.00019998,2]
[362343886,1748207461953,-420.0,0.00019998,2]
[362343887,1748207461963,-422.32762319,0.00019998,2]
[362343888,1748207461972,-430.2710596,0.00019998,2]
[362343889,1748207461981,-424.11901395,0.00019998,2]
[362343890,1748207461990,-425.57772105,0.00019998,2]
[362343891,1748207461999,-420.0,0.00019998,2]
[362343892,1748207462009,-206.50835048,0.00019998,2]
[362343893,1748207462019,-420.0,0.00019998,2]
[362343894,1748207462028,-433.08,0.00019998,2]
[362343895,1748207462038,-425.69424904,0.00019998,2]
[362343896,1748207462047,-420.0,0.00019998,2]
[362343897,1748207462056,-420.0,0.00019998,2]
[362343898,1748207462066,-420.0,0.00019998,2]
[362343899,1748207462075,-420.0,0.00019998,2]
[362343900,1748207462085,-420.0,0.00019998,2]
[362343901,1748207462094,-420.0,0.00019998,2]
[362343902,1748207462104,-489.28,0.00019998,2]
[362343903,1748207462114,-420.0,0.00019998,2]
[362343904,1748207462123,-420.0,0.00019998,2]
[362343905,1748207462133,-420.0,0.00019998,2]
[362343906,1748207462143,-157.18183,0.00019998,2]
[362343907,1748207462152,-500.0,0.00019998,2]
[362343908,1748207462162,-500.0,0.00019998,2]
[362343909,1748207462171,-425.5996873,0.00019998,2]
[362343910,1748207462181,-424.78548866,0.00019998,2]
[362343911,1748207462191,-500.0,0.00019998,2]
[362343912,1748207462200,-461.8,0.00019998,2]
[362343913,1748207462209,-500.0,0.00019998,2]
[362343914,1748207462218,-424.55432081,0.00019998,2]
[362343915,1748207462227,-420.0,0.00019998,2]
[362343916,1748207462237,-420.0,0.00019998,2]
[362343917,1748207462247,-420.0,0.00019998,2]
[362343918,1748207462256,-420.0,0.00019998,2]
[362343919,1748207462266,-420.0,0.00019998,2]
[362343920,1748207462275,-420.0,0.00019998,2]
[362343921,1748207462284,-421.68559193,0.00019998,2]
[362343922,1748207462294,-426.78113094,0.00019998,2]
[362343923,1748207462303,-427.84039379,0.00019998,2]
[362343924,1748207462313,-151.0,0.00019998,2]
[362343925,1748207462322,-420.0,0.00019998,2]
[362343926,1748207462332,-428.14530484,0.00019998,2]
[362343927,1748207462342,-420.0,0.00019998,2]
[362343928,1748207462351,-151.0,0.00019998,2]
[362343929,1748207462361,-260.35059898,0.00019998,2]
[362343930,1748207462371,-151.0,0.00019998,2]
[362343931,1748207462380,-420.0,0.00019998,2]
[362343932,1748207462389,-431.53904611,0.00019998,2]
[362343933,1748207462398,-420.0,0.00019998,2]